fUST/lending_fUST_20251017
["ID","MTS","AMOUNT","RATE_DAILY","PERIOD"]
[391555702,1760650246024,-200.0,0.000337,10]
[391555703,1760650246033,-200.0,0.000337,10]
[391555704,1760650246043,-200.0,0.000337,10]
[391555705,1760650246052,-153.81714402,0.000337,10]
[391555706,1760650246063,-46.18285598,0.000337,10]
[391555707,1760650246072,-200.0,0.000337,10]
[391555708,1760650246081,-200.0,0.000337,10]
[391555709,1760650246090,-200.0,0.000337,10]
[391555710,1760650246099,-200.0,0.000337,10]
[391555711,1760650246109,-200.0,0.000337,10]
[391555712,1760650246117,-200.0,0.000337,10]
[391555713,1760650246126,-200.0,0.000337,10]
[391555714,1760650246135,-200.0,0.000337,10]
[391555715,1760650246145,-200.0,0.000337,10]
[391555716,1760650246155,-200.0,0.000337,10]
[391555717,1760650246164,-200.0,0.000337,10]
[391555718,1760650246173,-200.0,0.000337,10]
[391555719,1760650246182,-200.0,0.000337,10]
[391555720,1760650246191,-200.0,0.000337,10]
[391555721,1760650246201,-200.0,0.000337,10]
[391555722,1760650246209,-200.0,0.000337,10]
[391555723,1760650246218,-200.0,0.000337,10]
[391555724,1760650246227,-200.0,0.000337,10]
[391555725,1760650246236,-200.0,0.000337,10]
[391555726,1760650246245,-208.08418,0.000337,10]
[391555727,1760650246254,-417.15472785,0.000415,7]
[391555728,1760650246263,-417.15472785,0.000435,30]
[391555729,1760650246272,-376.7,0.00047434,10]
[391555730,1760650246281,-2425.40448505,0.000482,120]
[391555731,1760650246290,-500.0,0.00048212,10]
[391555732,1760650246299,-350.0,0.00048268,10]
[391555733,1760650246309,-212.04342158,0.00048274,120]
[391555734,1760650246318,-600.0,0.00048392,90]
[391555735,1760650246327,-15.44171695,0.00048411,120]
[391555736,1760650246339,-146.11517568,0.00048411,120]
[391555737,1760650246348,-212.04342158,0.00048493,120]
[391555738,1760650246357,-156.927969,0.00048648,10]
[391555739,1760650246366,-190.0,0.0004869,76]
[391555740,1760650246375,-1650.10543344,0.000487,49]
[391555741,1760650247421,-10550.38456656,0.000487,49]
[391555742,1760650247432,-161.55689263,0.00048712,120]
[391555743,1760650247441,-212.04342158,0.00048712,120]
[391555744,1760650247451,-159.53743148,0.00048712,120]
[391555745,1760650247460,-159.53743147,0.00048712,120]
[391555746,1760650247469,-170.00999113,0.00048719,28]
[391555747,1760650247478,-509.14,0.000488,7]
[391555748,1760650247487,-550.0,0.00048816,10]
[391555749,1760650247496,-7566.75315375,0.000489,2]
[391555750,1760650247508,-1449.08909612,0.000489,2]
[391555751,1760650247518,-755.82259307,0.00049,120]
[391555752,1760650247527,-500.0,0.00049,120]
[391555753,1760650247537,-3046.7511488,0.00049,120]
[391555757,1760650540384,417.15472785,0.00027,2]
[391555758,1760650565683,782.71061754,0.00027,2]
[391555759,1760650669324,186.83141803,0.00025205,2]
[391555760,1760650669692,214.85613073,0.00025805,2]
[391555761,1760650670051,242.88084344,0.00026405,2]
[391555762,1760650686421,217.3,0.00015494,2]
[391555766,1760651189891,417.15472785,0.00027,2]
[391555767,1760651229178,-270.90555614,0.00027005,2]
[391555768,1760651229199,-115.37225079,0.000271,2]
[391555769,1760651250082,-1000.0,0.000271,2]
[391555770,1760651250103,-1000.0,0.000271,2]
[391555771,1760651250227,-298.93026885,0.00027605,2]
[391555772,1760651250248,-1200.0,0.00028203,2]
[391555773,1760651250268,-326.95498155,0.00028205,2]
[391555774,1760651250288,-354.97969425,0.00028805,2]
[391555775,1760651250308,-300.0,0.00029152,2]
[391555776,1760651250328,-213.88396683,0.00029153,2]
[391555777,1760651285856,2147.47365446,0.00027,2]
[391555778,1760651287990,150.0,0.00025205,2]
[391555779,1760651288362,172.5,0.00025805,2]
[391555780,1760651288756,195.0,0.00026405,2]
[391555781,1760651351093,-217.5,0.00027005,2]
[391555782,1760651351112,-240.0,0.00027605,2]
[391555783,1760651351131,-262.5,0.00028205,2]
[391555947,1760651437967,-285.0,0.00028805,2]
[391555948,1760651437976,-153.208067,0.00029154,20]
[391555949,1760651437986,-307.5,0.00029405,2]
[391555950,1760651437995,-153.208067,0.00029631,20]
[391555951,1760651438006,-156.384041,0.00029631,20]
[391555952,1760651438017,-330.0,0.00030005,2]
[391555953,1760651438027,-153.208067,0.00030108,20]
[391555954,1760651438037,-156.384041,0.00030108,20]
[391555955,1760651438047,-352.5,0.00030605,2]
[391555956,1760651438057,-375.0,0.00031205,2]
[391555957,1760651438066,-875.38899043,0.00031293,7]
[391555958,1760651438075,-397.5,0.00031805,2]
[391555959,1760651438088,-1500.0,0.000323,2]
[391555960,1760651438097,-400.0,0.00032404,2]
[391555961,1760651438107,-395.0,0.00032404,3]
[391555963,1760651438116,-420.0,0.00032405,2]
[391555964,1760651438126,-189.73933636,0.000326,2]
[391555965,1760651438137,-188.25505603,0.000326,2]
[391555966,1760651438146,-722.71034972,0.000326,2]
[391555967,1760651438156,-2106.37120921,0.000327,2]
[391555968,1760651438165,-507.05,0.000328,2]
[391555969,1760651438176,-171.968619,0.00032833,60]
[391555970,1760651438186,-189.73933636,0.000329,2]
[391555971,1760651438196,-188.25505603,0.000329,2]
[391555972,1760651438206,-722.71034972,0.000329,2]
[391555973,1760651438216,-287.30828845,0.00033005,2]
[391555974,1760651438228,-155.19171155,0.00033005,2]
[391555975,1760651438238,-189.73933636,0.000332,2]
[391555976,1760651438248,-188.25505603,0.000332,2]
[391555977,1760651438258,-722.71034972,0.000332,2]
[391555978,1760651438267,-189.73933636,0.000336,2]
[391555979,1760651438276,-722.71034972,0.000336,2]
[391555980,1760651438286,-465.0,0.00033605,2]
[391555981,1760651438296,-722.71034972,0.000339,2]
[391555982,1760651438306,-199.0,0.00034034,7]
[391555983,1760651438315,-1376.3525931,0.00034035,2]
[391555984,1760651438324,-487.5,0.00034205,2]
[391555985,1760651438334,-199.0,0.00034308,8]
[391555986,1760651438343,-199.0,0.00034582,9]
[391555987,1760651438353,-510.0,0.00034805,2]
[391555988,1760651438363,-532.5,0.00035405,2]
[391555989,1760651438372,-555.0,0.00036005,2]
[391555990,1760651438383,-2533.82,0.00036278,2]
[391555991,1760651438392,-577.5,0.00036605,2]
[391555992,1760651438402,-170.23200845,0.00037205,2]
[391555993,1760651438411,-500.0,0.00041433,120]
[391555994,1760651438420,-150.0,0.00041443,2]
[391555995,1760651438429,-153.208067,0.00041841,5]
[391555996,1760651438439,-5067.64,0.00042325,2]
[391555997,1760651438448,-153.208067,0.00042689,60]
[391555998,1760651438458,-153.208067,0.00042761,2]
[391555999,1760651438467,-172.0,0.00043028,2]
[391556000,1760651438477,-151.0,0.00043028,2]
[391556001,1760651438486,-151.0,0.00043028,2]
[391556002,1760651438496,-151.0,0.00043028,2]
[391556003,1760651438506,-151.0,0.00043083,2]
[391556004,1760651438515,-198.0,0.00043138,2]
[391556005,1760651438525,-170.00999113,0.00043172,28]
[391556006,1760651438534,-173.0,0.00043272,2]
[391556007,1760651438543,-172.0,0.00043303,2]
[391556008,1760651438553,-153.208067,0.00043467,3]
[391556009,1760651438562,-156.384041,0.00043467,3]
[391556010,1760651438572,-172.0,0.00043507,120]
[391556011,1760651438582,-375.7542265,0.00043561,120]
[391556012,1760651438591,-173.0,0.00043617,7]
[391556013,1760651438601,-173.0,0.00043625,7]
[391556014,1760651438610,-172.0,0.00043632,120]
[391556015,1760651438620,-172.0,0.0004365,2]
[391556016,1760651438629,-173.0,0.00044096,30]
[391556017,1760651438638,-172.0,0.00044142,2]
[391556018,1760651438648,-153.208067,0.00044484,3]
[391556019,1760651438657,-156.384041,0.00044484,3]
[391556020,1760651438666,-153.208067,0.00044558,10]
[391556021,1760651438675,-172.0,0.00044757,2]
[391556022,1760651438684,-173.0,0.00044895,2]
[391556023,1760651438694,-172.0,0.0004496,2]
[391556024,1760651438703,-38942.49859581,0.00045334,7]
[391556025,1760651438715,-1172.93953002,0.00045334,7]
[391556026,1760651438727,-736.12090922,0.00045334,7]
[391556027,1760651438738,-30407.86744299,0.00045334,7]
[391556028,1760651438747,-14047.33471573,0.00045344,2]
[391556029,1760651438757,-166.21685339,0.000454,2]
[391556030,1760651438766,-291.29907643,0.00045433,120]
[391556031,1760651438776,-221392.514252,0.00045434,3]
[391556032,1760651438785,-500.0,0.00045443,120]
[391556033,1760651438795,-1999.0,0.00045443,120]
[391556034,1760651438805,-3856.0587,0.00045444,30]
[391556035,1760651438815,-231917.4884,0.00045444,30]
[391556036,1760651438824,-160.0,0.00045444,30]
[391556037,1760651438834,-500.0,0.00045473,10]
[391556038,1760651438843,-153.208067,0.000455,3]
[391556039,1760651438852,-156.384041,0.000455,3]
[391556040,1760651438862,-172.0,0.00045728,7]
[391556041,1760651438872,-172.0,0.00045793,7]
[391556042,1760651438881,-153.208067,0.0004592,5]
[391556043,1760651438891,-156.384041,0.0004592,5]
[391556044,1760651438901,-1000.0,0.00046021,10]
[391556045,1760651438910,-173.0,0.00046125,2]
[391556046,1760651438920,-1378.86877704,0.00046217,2]
[391556047,1760651438930,-172.0,0.00046279,2]
[391556048,1760651438940,-173.0,0.00046284,7]
[391556049,1760651438949,-14047.33471573,0.00046344,2]
[391556050,1760651438959,-44278.5028504,0.00046362,4]
[391556051,1760651438969,-173.0,0.00046423,120]
[391556052,1760651438979,-1378.86877704,0.00046559,2]
[391556053,1760651438988,-1500.0,0.00046568,10]
[391556054,1760651438999,-1378.86877704,0.00046775,2]
[391556055,1760651439010,-1999.0,0.00046813,120]
[391556056,1760651439020,-9561.7312186,0.00046837,2]
[391556057,1760651439030,-2074.9461104,0.00046837,2]
[391556058,1760651439040,-1378.86877704,0.00046861,2]
[391556059,1760651439051,-150.0,0.00046864,2]
[391556060,1760651439061,-173.0,0.00046977,2]
[391556061,1760651439071,-44278.5028504,0.00047003,4]
[391556062,1760651439081,-370000.0,0.00047033,2]
[391556063,1760651439094,-160.0,0.00047043,120]
[391556064,1760651439104,-56718.90700848,0.00047043,120]
[391556065,1760651439113,-215.24090175,0.00047068,120]
[391556066,1760651439122,-500.0,0.00047073,10]
[391556067,1760651439132,-172.0,0.00047083,7]
[391556068,1760651439142,-151.0,0.000471,27]
[391556069,1760651439152,-1378.86877704,0.00047141,2]
[391556070,1760651439162,-500.0,0.00047173,10]
[391556071,1760651439173,-215.24090175,0.00047288,120]
[391556072,1760651439183,-151.0,0.000473,21]
[391556073,1760651439193,-177.64477798,0.00047344,34]
[391556074,1760651439203,-9005.93473095,0.00047344,2]
[391556075,1760651439213,-14047.33471573,0.00047344,2]
[391556076,1760651439224,-172.0,0.00047375,30]
[391556077,1760651439234,-172.0,0.0004742,7]
[391556078,1760651439244,-153.208067,0.0004742,2]
[391556079,1760651439254,-156.384041,0.0004742,2]
[391556080,1760651439264,-1000.0,0.00047443,120]
[391556081,1760651439274,-39519.3959,0.00047444,30]
[391556082,1760651439284,-312445.27618603,0.00047444,30]
[391556090,1760651440175,-300.4,0.00047444,30]
[391556091,1760651440242,-336155.21875319,0.00047444,30]
[391556092,1760651440254,-62201.64683774,0.00047444,30]
[391556288,1760651443285,-933.69040795,0.00047444,30]
[391556374,1760651541161,500.0,0.00023583,2]
[391556375,1760651541538,500.0,0.0002499,2]
[391556376,1760651541873,500.0,0.00026068,7]
[391556377,1760651556951,227.5,0.000249,2]
[391556378,1760651613092,887.02140736,0.00028941,120]
[391556386,1760651813984,417.15472785,0.00027,2]
[391556387,1760651840664,500.0,0.00024206,2]
[391556388,1760651841475,500.0,0.00023927,2]
[391556389,1760651847337,500.0,0.00024496,2]
[391556390,1760651898046,443.48,0.00029041,120]
[391556391,1760651907111,150.0,0.00025205,2]
[391556392,1760651908103,172.5,0.00025805,2]
[391556393,1760651908447,195.0,0.00026405,2]
[391556394,1760651921704,2538.42688984,0.00027,2]
[391556395,1760651921726,7461.57311016,0.00027,2]
[391556396,1760651951863,2538.43688984,0.00027,2]
[391556397,1760651951885,323.26311016,0.00027,2]
[391556400,1760652158071,417.15472785,0.00025,10]
[391556401,1760652158665,417.15472785,0.00024,7]
[391556406,1760652423558,515.0,0.00029,120]
[391556407,1760652438126,-217.5,0.00027005,2]
[391556408,1760652438148,-240.0,0.00027605,2]
[391556409,1760652438168,-262.5,0.00028205,2]
[391556410,1760652438187,-285.0,0.00028805,2]
[391556411,1760652438208,-1200.0,0.00028897,2]
[391556412,1760652438228,-471.0,0.00028898,2]
[391556413,1760652438247,-300.0,0.00028898,2]
[391556414,1760652438266,-300.0,0.00028898,2]
[391556415,1760652438289,-300.0,0.00028898,2]
[391556416,1760652438308,-300.0,0.00028898,2]
[391556417,1760652438328,-492.45402326,0.00028898,2]
[391556418,1760652438348,-300.0,0.000289,2]
[391556419,1760652438368,-300.0,0.000289,2]
[391556420,1760652438388,-300.0,0.000289,2]
[391556421,1760652438406,-300.0,0.000289,2]
[391556422,1760652438426,-223.48225402,0.000289,2]
[391556423,1760652442078,417.15472785,0.00027,2]
[391556424,1760652452084,-76.51774598,0.000289,2]
[391556425,1760652452105,-154.047265,0.00029679,20]
[391556426,1760652452124,-130.82467033,0.00030068,20]
[391556464,1760652632392,-23.22259467,0.00030068,20]
[391556467,1760652632402,-156.34539,0.00030068,20]
[391556469,1760652632412,-196.35144884,0.00030122,2]
[391556479,1760652632510,-309.67565516,0.00030122,2]
[391556481,1760652632520,-802.20915082,0.00030228,2]
[391556484,1760652632532,-2189.87349868,0.00030228,2]
[391556486,1760652632541,-154.047265,0.00030457,20]
[391556488,1760652632550,-156.34539,0.00030457,20]
[391556490,1760652632559,-682.0,0.00030999,2]
[391556492,1760652632568,-1000.01,0.00031,2]
[391556494,1760652632577,-1000.01,0.00031174,2]
[391556496,1760652632586,-400.0,0.00031178,2]
[391556498,1760652632595,-300.0,0.00031178,3]
[391556500,1760652632605,-380.0,0.00031178,3]
[391556501,1760652632614,-400.0,0.00031178,3]
[391556503,1760652632624,-500.0,0.000313,7]
[391556505,1760652632633,-176.6,0.00032273,32]
[391556507,1760652632642,-1667.00572675,0.000327,2]
[391556509,1760652632652,-169.68523388,0.000327,2]
[391556511,1760652632661,-288.25434507,0.000327,2]
[391556513,1760652632670,-185.52756136,0.000327,2]
[391556516,1760652632679,-191.17515885,0.000327,2]
[391556517,1760652632688,-162.92617451,0.000327,2]
[391556520,1760652632698,-163.2215299,0.000327,2]
[391556521,1760652632708,-160.0,0.000327,2]
[391556523,1760652632718,-175.97057363,0.000327,2]
[391556525,1760652632727,-1827.70909118,0.000327,2]
[391556527,1760652632736,-183.12601999,0.000327,2]
[391556529,1760652632745,-160.0,0.00032711,2]
[391556531,1760652632754,-1667.00572675,0.00033,2]
[391556533,1760652632763,-169.68523388,0.00033,2]
[391556535,1760652632772,-288.25434507,0.00033,2]
[391556537,1760652632782,-191.17515885,0.00033,2]
[391556539,1760652632791,-185.52756136,0.00033,2]
[391556541,1760652632801,-163.2215299,0.00033,2]
[391556543,1760652632810,-1827.70909118,0.00033,2]
[391556545,1760652632819,-154.047265,0.00033102,5]
[391556547,1760652632828,-154.047265,0.00033203,5]
[391556549,1760652632838,-156.34539,0.00033203,5]
[391556551,1760652632847,-154.047265,0.00033304,5]
[391556553,1760652632856,-156.34539,0.00033304,5]
[391556555,1760652632865,-164.761643,0.00033394,2]
[391556557,1760652632874,-1667.00572675,0.000334,2]
[391556559,1760652632883,-288.25434507,0.000334,2]
[391556561,1760652632892,-185.52756136,0.000334,2]
[391556563,1760652632901,-191.17515885,0.000334,2]
[391556565,1760652632911,-163.2215299,0.000334,2]
[391556567,1760652632920,-1827.70909118,0.000334,2]
[391556569,1760652632930,-560.0,0.00033562,2]
[391556571,1760652632939,-1667.00572675,0.000337,2]
[391556573,1760652632949,-288.25434507,0.000337,2]
[391556575,1760652632960,-185.52756136,0.000337,2]
[391556577,1760652632970,-191.17515885,0.000337,2]
[391556580,1760652632981,-163.2215299,0.000337,2]
[391556581,1760652632990,-1827.70909118,0.000337,2]
[391556584,1760652633000,-170.00999113,0.000339,2]
[391556586,1760652633009,-1667.00572675,0.00034,2]
[391556587,1760652633018,-288.25434507,0.00034,2]
[391556589,1760652633028,-185.52756136,0.00034,2]
[391556591,1760652633038,-163.2215299,0.00034,2]
[391556593,1760652633047,-1827.70909118,0.00034,2]
[391556595,1760652633057,-179.69451932,0.00034271,12]
[391556597,1760652633067,-2577.17,0.0003441,2]
[391556600,1760652633078,-500.0,0.0003488,7]
[391556602,1760652633088,-746.0,0.00036129,2]
[391556604,1760652633097,-160.0,0.000376,2]
[391556606,1760652633106,-420.0,0.00038148,2]
[391556608,1760652633116,-5154.33,0.00040145,2]
[391556609,1760652633126,-193.0,0.00041,90]
[391556611,1760652633136,-154.047265,0.00042689,60]
[391556614,1760652633146,-156.34539,0.00042689,60]
[391556615,1760652633155,-9912.3185,0.00043444,30]
[391556617,1760652633167,-154.047265,0.00043744,3]
[391556620,1760652633183,-333.0,0.0004382,2]
[391556622,1760652633192,-333.0,0.00043987,7]
[391556624,1760652633203,-696.93011101,0.00044009,120]
[391556626,1760652633212,-1001.0,0.00044041,2]
[391556627,1760652633221,-333.0,0.00044377,2]
[391556630,1760652633231,-1001.0,0.00044557,7]
[391556632,1760652633241,-154.047265,0.00044617,3]
[391556634,1760652633250,-156.34539,0.00044617,3]
[391556636,1760652633260,-1378.86877704,0.0004471,2]
[391556638,1760652633269,-1099.87742813,0.00044786,98]
[391556640,1760652633278,-352.0,0.00044807,2]
[391556642,1760652633288,-333.0,0.00044832,7]
[391556643,1760652633297,-333.0,0.00044927,2]
[391556645,1760652633307,-1378.86877704,0.00045022,2]
[391556647,1760652633317,-1003.0,0.00045125,7]
[391556649,1760652633326,-506.027104,0.00045183,2]
[391556651,1760652633336,-20683.75912144,0.00045214,7]
[391556654,1760652633352,-4497.5762867,0.00045214,7]
[391556656,1760652633363,-1726.5,0.00045214,7]
[391556658,1760652633375,-1159.32619142,0.00045214,7]
[391556827,1760652638382,-905.68,0.00045214,7]
[391556829,1760652638394,-705.23152683,0.00045214,7]
[391556832,1760652638406,-729.7943166,0.00045214,7]
[391556834,1760652638417,-20543.26620023,0.00045224,2]
[391556835,1760652638428,-1499.87056077,0.00045224,2]
[391556838,1760652638438,-6427.37648463,0.00045305,3]
[391556839,1760652638448,-377.0332025,0.00045313,120]
[391556841,1760652638459,-205.7872779,0.00045313,31]
[391556843,1760652638470,-500.0,0.00045314,120]
[391556856,1760652638591,-122924.870792,0.00045314,3]
[391556858,1760652638601,-10712.294141,0.00045314,3]
[391556861,1760652638612,-1999.0,0.00045323,120]
[391556862,1760652638622,-245849.741584,0.00045324,3]
[391556864,1760652638631,-17139.6706257,0.00045324,3]
[391556866,1760652638641,-2142.45882821,0.00045334,3]
[391556868,1760652638651,-370000.0,0.00045334,2]
[391556870,1760652638662,-56718.90700848,0.00045344,120]
[391556872,1760652638672,-500.0,0.00045373,10]
[391556874,1760652638682,-500.0,0.00045373,10]
[391556877,1760652638692,-2123.18,0.000454,14]
[391556878,1760652638702,-4284.91765642,0.00045434,3]
[391556880,1760652638715,-98798.4898,0.00045444,30]
[391556883,1760652638726,-1378.86877704,0.00045444,2]
[391556884,1760652638735,-1001.0,0.00045446,120]
[391556886,1760652638745,-500.0,0.00045473,2]
[391556888,1760652638755,-154.047265,0.0004549,3]
[391556890,1760652638764,-156.34539,0.0004549,3]
[391556892,1760652638775,-1378.86877704,0.00045658,2]
[391556894,1760652638784,-333.0,0.00045686,2]
[391556896,1760652638794,-333.0,0.00045692,120]
[391556897,1760652638803,-1001.0,0.00045699,30]
[391556899,1760652638813,-177.64477798,0.00045752,28]
[391556901,1760652638823,-1499.87056076,0.00045754,2]
[391556903,1760652638832,-2142.45882821,0.00045838,4]
[391556905,1760652638843,-7731.5,0.0004588,2]
[391556907,1760652638852,-333.0,0.00045908,2]
[391556909,1760652638862,-181.27775221,0.00045921,10]
[391556911,1760652638872,-1000.0,0.00045921,10]
[391556913,1760652638882,-1378.86877704,0.00045922,2]
[391556915,1760652638892,-333.0,0.00045975,2]
[391556917,1760652638902,-1000.0,0.00046021,2]
[391556919,1760652638912,-1378.86877704,0.00046115,2]
[391556921,1760652638922,-1001.0,0.00046124,2]
[391556923,1760652638931,-333.0,0.00046201,7]
[391556924,1760652638940,-20543.26620023,0.00046284,2]
[391556926,1760652638950,-1499.87056076,0.00046284,2]
[391556928,1760652638962,-1378.86877704,0.00046319,2]
[391556930,1760652638973,-1500.0,0.00046468,10]
[391556932,1760652638982,-537.05869976,0.00046568,2]
[391556934,1760652638992,-150.0,0.00046573,10]
[391556936,1760652639003,-500.0,0.00046575,120]
[391556938,1760652639013,-500.0,0.00046575,120]
[391556939,1760652639023,-500.0,0.00046575,120]
[391556941,1760652639032,-500.0,0.00046575,120]
[391556943,1760652639043,-500.0,0.00046575,120]
[391556945,1760652639052,-500.0,0.00046575,120]
[391556947,1760652639062,-500.0,0.00046575,120]
[391556949,1760652639074,-500.0,0.00046575,120]
[391556950,1760652639084,-500.0,0.00046575,120]
[391556952,1760652639095,-500.0,0.00046575,120]
[391556954,1760652639105,-500.0,0.00046575,120]
[391556956,1760652639115,-500.0,0.00046575,120]
[391556958,1760652639124,-500.0,0.00046575,120]
[391556960,1760652639134,-500.0,0.00046575,120]
[391556961,1760652639144,-500.0,0.00046575,120]
[391556963,1760652639155,-500.0,0.00046575,120]
[391556965,1760652639165,-500.0,0.00046575,120]
[391556966,1760652639175,-500.0,0.00046575,120]
[391556967,1760652639185,-500.0,0.00046575,120]
[391556968,1760652639194,-500.0,0.00046575,120]
[391556969,1760652639204,-500.0,0.00046575,120]
[391556970,1760652639216,-500.0,0.00046575,120]
[391556971,1760652639225,-500.0,0.00046575,120]
[391556972,1760652639235,-500.0,0.00046575,120]
[391556973,1760652639246,-500.0,0.00046575,120]
[391556974,1760652639256,-500.0,0.00046575,120]
[391556975,1760652639267,-500.0,0.00046575,120]
[391556976,1760652639276,-500.0,0.00046575,120]
[391556977,1760652639286,-500.0,0.00046575,120]
[391556978,1760652639296,-499.94,0.00046575,120]
[391556979,1760652639306,-696.93011101,0.0004665,120]
[391556980,1760652639315,-1378.86877704,0.00046675,2]
[391556981,1760652639325,-500.0,0.00046684,120]
[391556982,1760652639335,-1999.0,0.00046693,120]
[391556983,1760652639348,-333.0,0.00046702,7]
[391556984,1760652639357,-192.19770905,0.00046764,2]
[391556985,1760652639366,-345.95587628,0.00046764,2]
[391556986,1760652639376,-615.03266894,0.00046764,2]
[391556987,1760652639386,-960.98854523,0.00046764,2]
[391556988,1760652639396,-151.0,0.000468,26]
[391556989,1760652639405,-1499.87056076,0.00046814,2]
[391556990,1760652639417,-333.0,0.00046832,2]
[391556991,1760652639427,-981.0,0.00046864,2]
[391556992,1760652639436,-2161.0,0.00046864,2]
[391556993,1760652639445,-631.0,0.00046864,2]
[391556994,1760652639455,-1003.0,0.00046892,30]
[391556995,1760652639466,-1378.86877704,0.00046946,2]
[391556996,1760652639475,-151.0,0.00047,29]
[391556997,1760652639484,-2000.0,0.00047016,10]
[391556998,1760652639494,-155.21802844,0.00047068,120]
[391556999,1760652639503,-287.91938817,0.00047121,10]
[391557000,1760652639512,-151.0,0.0004715,120]
[391557001,1760652639522,-922.35288,0.0004715,120]
[391557002,1760652639531,-922.35288,0.0004715,120]
[391557003,1760652639541,-151.0,0.0004715,120]
[391557004,1760652639551,-922.35288,0.0004715,120]
[391557005,1760652639561,-151.0,0.0004715,120]
[391557006,1760652639571,-922.35288,0.0004715,120]
[391557007,1760652639580,-199.800285,0.0004715,120]
[391557008,1760652639589,-199.800285,0.0004715,120]
[391557009,1760652639599,-199.800285,0.0004715,120]
[391557010,1760652639608,-199.800285,0.0004715,120]
[391557011,1760652639617,-151.0,0.0004715,120]
[391557012,1760652639626,-1378.86877713,0.00047196,2]
[391557013,1760652639635,-151.0,0.000472,21]
[391557014,1760652639645,-2387.9506913,0.00047234,2]
[391557015,1760652639654,-9695.5575251,0.00047234,2]
[391557016,1760652639664,-822.9816964,0.00047234,2]
[391557017,1760652639675,-333.0,0.00047247,120]
[391557018,1760652639684,-154.047265,0.00047293,2]
[391557019,1760652639694,-156.34539,0.00047293,2]
[391557020,1760652639703,-9758.27238633,0.00047344,2]
[391557021,1760652639714,-20543.26620023,0.00047344,2]
[391557022,1760652639723,-1499.87056076,0.00047344,2]
[391557023,1760652639732,-500.0,0.00047373,10]
[391557024,1760652639742,-1003.0,0.00047426,2]
[391557025,1760652639752,-1000.0,0.00047443,120]
[391557026,1760652639761,-250.0,0.00047443,30]
[391557027,1760652639771,-250.0,0.00047443,30]
[391557028,1760652639781,-250.0,0.00047443,30]
[391557029,1760652639791,-250.0,0.00047443,30]
[391557030,1760652639800,-250.0,0.00047443,30]
[391557031,1760652639810,-250.0,0.00047443,30]
[391557032,1760652639820,-250.0,0.00047443,30]
[391557033,1760652639830,-250.0,0.00047443,30]
[391557034,1760652639839,-250.0,0.00047443,30]
[391557035,1760652639849,-250.0,0.00047443,30]
[391557036,1760652639859,-250.0,0.00047443,30]
[391557037,1760652639868,-250.0,0.00047443,30]
[391557038,1760652639878,-250.0,0.00047443,30]
[391557039,1760652639887,-250.0,0.00047443,30]
[391557040,1760652639896,-250.0,0.00047443,30]
[391557041,1760652639906,-250.0,0.00047443,30]
[391557042,1760652639915,-250.0,0.00047443,30]
[391557043,1760652639924,-151.0,0.00047443,30]
[391557044,1760652639933,-151.0,0.00047443,30]
[391557045,1760652639943,-151.0,0.00047443,30]
[391557046,1760652639952,-250.0,0.00047443,30]
[391557047,1760652639963,-250.0,0.00047443,30]
[391557048,1760652639972,-250.0,0.00047443,30]
[391557049,1760652639981,-250.0,0.00047443,30]
[391557050,1760652639990,-250.0,0.00047443,30]